bitfinex-derivatives/quotes_ETHF0:USTF0_20220103
["timestamp","ask_amount","ask_price","bid_price","bid_amount"]
[1641227771018,0.56460359,3747.4,3747.3,0.3930677]
[1641227771418,3.59e-06,3747.4,3747.3,0.3930677]
[1641227771816,1.10494005,3747.6,3747.3,0.3930677]
[1641227771817,1.10494005,3747.6,3747.3,1.189132]
[1641227772017,1.10494005,3747.9,3747.3,1.189132]
[1641227772219,1.10494005,3747.9,3747.5,2.00479]
[1641227772420,1.10494005,3747.9,3747.5,2.62169]
[1641227773220,1.23309705,3748.1,3747.5,2.62169]
[1641227773419,1.23309705,3748.1,3747.5,2.00479]
[1641227774021,1.10494005,3748.1,3747.5,2.00479]
[1641227774222,1.10494005,3748.2,3747.5,2.00479]
[1641227774421,1.23309705,3748.2,3747.5,2.00479]
[1641227775225,2.34002935,3748.2,3747.5,2.00479]
[1641227775423,1.2350893,3748.2,3747.7,1.50533762]
[1641227775622,0.128157,3748.2,3747.7,2.18597673]
[1641227775823,0.128157,3748.2,3747.8,0.3930677]
[1641227776023,1.10494005,3748.3,3748.1,0.3930677]
[1641227776223,1.10494005,3748.3,3748.1,2.3978577]
[1641227776423,1.10494005,3748.3,3748.1,2.00479]
[1641227777525,1.10494005,3748.6,3748.1,2.00479]
[1641227777924,1.10494005,3748.6,3748.1,2.3978577]
[1641227778123,1.10494005,3748.6,3748.1,2.00479]
[1641227778524,2.132947,3748.7,3748.1,3.51012762]
[1641227778923,2.00479,3748.7,3748.1,3.90319532]
[1641227779225,2.00479,3748.7,3748.1,3.51012762]
[1641227779625,1.10494005,3748.8,3748.2,0.3930677]
[1641227780024,1.10494005,3748.8,3748.2,1.11749925]
[1641227780227,1.10494005,3748.8,3748.7,2.00479]
[1641227780826,1.10494005,3748.8,3748.7,2.74499]
[1641227781027,1.10494005,3748.8,3748.7,3.70485334]
[1641227781726,0.229991,3748.8,3748.7,3.70485334]
[1641227781926,1.10494005,3748.9,3748.7,1.70006334]
[1641227782125,1.10494005,3748.9,3748.7,0.95986334]
[1641227782526,1.10494005,3748.9,3748.7,2.96465334]
[1641227783728,1.10494005,3749.0,3748.7,2.96465334]
[1641227786329,0.128157,3749.2,3748.7,2.96465334]
[1641227786530,0.128157,3749.2,3748.7,1.15860625]
[1641227787731,0.128157,3749.2,3748.7,2.14119468]
[1641227788434,1.1069323,3749.3,3748.7,2.14119468]
[1641227788833,0.128157,3749.2,3748.7,2.14119468]
[1641227789034,1.1069323,3749.1,3748.7,2.14119468]
[1641227789434,1.5,3749.1,3748.7,9.468e-05]
[1641227789634,1.1069323,3748.8,3746.8,32.5319677]
[1641227789835,1.1069323,3748.8,3746.9,30.665]
[1641227790434,1.1069323,3748.8,3747.0,1.23951752]
[1641227790637,2.00479,3747.1,3747.0,1.23951752]
[1641227791833,9e-05,3747.1,3747.0,1.23951752]
[1641227792033,9e-05,3747.1,3747.0,1.63258522]
[1641227792236,9e-05,3747.1,3747.0,1.23951752]
[1641227792633,0.6127,3747.3,3747.0,1.63258522]
[1641227792834,0.229991,3747.2,3747.0,1.63258522]
[1641227793237,0.6127,3747.3,3747.0,1.23951752]
[1641227793835,0.229991,3747.2,3747.0,1.23951752]
[1641227794034,0.6127,3747.3,3747.0,1.23951752]
[1641227794736,0.229991,3747.2,3747.0,1.23951752]
[1641227795037,1.1069323,3747.1,3747.0,1.23951752]
[1641227795439,1.1069323,3747.1,3745.8,31.7233]
[1641227795638,1.1069323,3746.5,3745.2,29.9299]
[1641227795840,0.358148,3746.4,3745.1,3.17232045]
[1641227796039,1.1069323,3746.3,3746.2,2.79284708]
[1641227796439,1.1069323,3746.3,3746.2,2.00479]
[1641227797439,0.6746,3746.5,3746.2,2.00479]
[1641227797739,2.00479,3746.7,3746.2,2.00479]
[1641227798139,2.00479,3746.7,3746.2,3.11923074]
[1641227798738,3.2398793,3746.7,3746.2,3.11923074]
[1641227799040,1.1069323,3746.5,3746.2,3.11923074]
[1641227799238,0.229991,3746.4,3746.2,3.11923074]
[1641227799439,1.1069323,3746.5,3746.2,3.11923074]
[1641227800141,0.229991,3746.4,3746.2,3.11923074]
[1641227800743,0.229991,3746.4,3746.2,1.11444074]
[1641227801145,0.229991,3746.3,3746.2,1.11444074]
[1641227801344,1.1069323,3746.5,3746.2,1.11444074]
[1641227801542,2.132947,3746.7,3746.2,1.11444074]
[1641227801742,2.00479,3746.7,3746.2,1.11444074]
[1641227803143,1.1069323,3746.3,3746.2,1.11444074]
[1641227803344,0.229991,3746.3,3746.2,1.11444074]
[1641227804747,3.1117223,3746.7,3746.2,1.11444074]
[1641227805348,13.48479,3746.7,3746.2,1.11444074]
[1641227805551,1.1069323,3746.3,3746.2,1.11444074]
[1641227805747,1.3369233,3746.3,3746.2,1.11444074]
[1641227805947,0.229991,3746.3,3746.2,1.11444074]
[1641227806351,2.00479,3746.7,3746.2,1.11444074]
[1641227806550,1.10494005,3747.3,3746.6,0.3930677]
[1641227806850,1.10494005,3747.1,3746.5,2.00479]
[1641227807251,1.10494005,3747.1,3746.5,2.3978577]
[1641227808051,1.10494005,3747.1,3747.0,1.50577064]
[1641227808250,3.1117223,3747.5,3747.0,2.24887064]
[1641227808452,2.132947,3747.5,3747.0,3.40058911]
[1641227808853,2.00479,3747.5,3747.0,3.40058911]
[1641227809552,1.1069323,3747.4,3747.2,1.50577064]
[1641227810452,2.00479,3747.5,3747.0,1.15171847]
[1641227812150,1.1069323,3747.3,3747.0,1.15171847]
[1641227813554,2.00479,3747.5,3747.0,1.15171847]
[1641227814154,1.1069323,3747.3,3747.0,1.15171847]
[1641227814354,0.229991,3747.2,3747.0,1.15171847]
[1641227814555,2.00479,3747.5,3747.0,1.15171847]
[1641227816256,2.00479,3747.5,3747.1,1.49983345]
[1641227816856,2.00479,3747.5,3747.1,2.12603345]
[1641227817457,2.00479,3747.5,3747.2,1.49983345]
[1641227818259,2.00479,3747.5,3747.3,0.3930677]
[1641227819162,2.00479,3747.5,3747.2,1.49983345]
[1641227819660,2.00479,3747.5,3747.1,0.6262]
[1641227819861,2.00479,3747.5,3747.0,1.15171847]
[1641227820160,1.80431101,3747.5,3747.0,1.15171847]
[1641227821059,1.80431101,3747.5,3747.4,1.49970829]
[1641227822660,1.80431101,3747.5,3747.2,1.49970829]
[1641227822861,1.1069323,3747.3,3747.2,1.49970829]
[1641227823061,14.0869323,3747.3,3747.2,1.49970829]
[1641227823662,14.0869323,3747.3,3747.1,1.49970829]
[1641227823861,0.229991,3747.2,3747.1,1.49970829]
[1641227824264,0.229991,3747.2,3746.2,4.34581329]
[1641227824864,1.1069323,3746.3,3746.2,5.27597005]
[1641227825063,1.1069323,3746.3,3746.2,4.27516171]
[1641227825464,1.1069323,3746.3,3746.2,1.35430818]
[1641227826466,1.3369233,3746.3,3746.2,1.35430818]
[1641227826968,1.1069323,3746.3,3746.2,0.93015676]
[1641227827366,1.3369233,3746.3,3746.2,0.93015676]
[1641227828169,1.1069323,3746.3,3746.2,0.93015676]
[1641227828467,1.3369233,3746.3,3746.2,0.93015676]
[1641227828669,1.1069323,3746.3,3746.2,0.93015676]
[1641227829069,1.3369233,3746.3,3746.2,0.93015676]
[1641227829471,1.1069323,3746.3,3746.2,0.93015676]
[1641227829871,2.00479,3746.7,3746.2,0.93015676]
[1641227830076,3.1117223,3746.7,3746.2,0.93015676]
[1641227831871,2.00479,3746.7,3746.2,1.44945676]
[1641227832776,1.1069323,3746.6,3746.2,1.44945676]
[1641227833373,1.1069323,3746.6,3746.2,0.93015676]
[1641227833575,1.1069323,3746.6,3746.5,1.50013016]
[1641227833775,2.132947,3746.7,3746.5,1.50013016]
[1641227834176,2.00479,3746.7,3746.5,1.50013016]
[1641227834378,3.3417133,3746.7,3746.5,1.50013016]
[1641227834579,3.1117223,3746.7,3746.3,1.50013016]
[1641227834777,1.1069323,3746.6,3746.3,1.50013016]
[1641227834975,2.00479,3746.7,3746.3,1.50013016]
[1641227835576,1.1069323,3746.6,3746.2,3.22868692]
[1641227835776,0.79576008,3746.6,3746.2,3.22868692]
[1641227836176,0.79576008,3746.6,3746.3,1.50013016]
[1641227836378,2.00479,3746.7,3746.3,1.50013016]
[1641227837182,0.79576008,3746.4,3746.3,1.50013016]
[1641227837378,1.02575108,3746.4,3746.3,1.50013016]
[1641227837677,1.02575108,3746.4,3746.2,0.93015676]
[1641227838078,0.79576008,3746.4,3746.2,0.93015676]
[1641227839578,0.229991,3746.3,3746.2,0.93015676]
[1641227839783,0.79576008,3746.4,3746.2,0.93015676]
[1641227840683,1.02575108,3746.4,3746.2,0.93015676]
[1641227841083,11.48,3746.3,3746.2,5.676e-05]
[1641227841286,12.0887,3746.3,3745.8,1.50013016]
[1641227841482,0.79576008,3745.9,3745.8,1.50013016]
[1641227841683,1.15390808,3745.9,3745.8,1.50013016]
[1641227842084,1.15390808,3745.9,3745.8,2.7865195]
[1641227842483,1.15390808,3745.9,3745.8,1.28638934]
[1641227843685,2.65390808,3745.9,3744.8,32.31012016]
[1641227843885,0.79576008,3744.9,3744.8,1.50013016]
[1641227844085,1.02575108,3744.9,3744.8,1.50013016]
[1641227844986,1.02575108,3744.9,3744.5,1.50013016]
[1641227845186,0.79576008,3744.6,3744.5,1.50013016]
[1641227845386,1.02575108,3744.6,3744.5,1.50013016]
[1641227845585,0.79576008,3744.6,3744.5,1.50013016]
[1641227845985,0.79576008,3744.6,3744.1,2.00479]
[1641227846185,0.79576008,3744.6,3744.5,1.28744424]
[1641227847389,2.00479,3745.0,3744.5,1.28744424]
[1641227848388,2.00479,3745.0,3744.9,1.50039829]
[1641227848588,3.03054108,3745.0,3744.9,1.50039829]
[1641227849790,2.00479,3746.0,3744.9,1.50039829]
[1641227850091,2.00479,3746.0,3744.9,2.21699829]
[1641227850291,0.79576008,3745.6,3744.9,2.21699829]
[1641227850490,0.128157,3745.6,3744.9,2.21699829]
[1641227850891,0.128157,3745.6,3745.0,1.25494483]
[1641227851092,0.128157,3745.6,3745.1,1.33391492]
[1641227851308,0.128157,3745.6,3745.2,1.50039829]
[1641227851692,0.79576008,3745.3,3745.2,1.50039829]
[1641227852090,2.00479,3746.0,3745.2,1.50039829]
[1641227852491,0.79576008,3745.8,3745.1,3.53855313]
[1641227852692,0.79576008,3745.8,3745.1,2.83431321]
[1641227853090,0.128157,3745.9,3745.1,2.83431321]
[1641227853291,0.79576008,3745.4,3745.3,1.50039829]
[1641227854392,1.02575108,3745.4,3745.3,1.50039829]
[1641227854991,3.03054108,3745.4,3745.0,1.25494483]
[1641227855195,0.79576008,3745.1,3745.0,1.25494483]
[1641227855391,1.93750808,3745.1,3745.0,1.25494483]
[1641227855791,1.70751708,3745.1,3745.0,1.25494483]
[1641227855991,1.57936008,3745.1,3745.0,1.25494483]
[1641227856393,1.80935108,3745.1,3745.0,1.25494483]
[1641227857592,1.93750808,3745.1,3745.0,1.25494483]
[1641227860796,1.15390808,3745.1,3745.0,1.25494483]
[1641227865999,0.79576008,3745.1,3745.0,1.25494483]
[1641227866202,1.02575108,3745.1,3745.0,1.25494483]
[1641227866401,0.79576008,3745.1,3745.0,1.25494483]
[1641227867406,1.02575108,3745.1,3745.0,1.25494483]
[1641227867604,0.79576008,3745.1,3745.0,1.25494483]
[1641227868206,1.02575108,3745.1,3745.0,1.25494483]
[1641227868606,0.79576008,3745.1,3745.0,1.25494483]
[1641227870008,2.00479,3745.4,3745.0,1.25494483]
[1641227872006,2.80055008,3745.4,3745.0,1.25494483]
[1641227872807,2.00479,3745.4,3745.0,1.25494483]
[1641227873009,2.00479,3745.4,3745.0,1.95918475]
[1641227873214,2.80055008,3745.4,3745.0,1.25494483]
[1641227873410,0.79576008,3745.4,3745.0,1.25494483]
[1641227874613,2.00479,3745.8,3745.0,1.25494483]
[1641227874614,0.59528109,3745.3,3745.0,1.25494483]
[1641227874815,0.59528109,3745.2,3745.0,1.25494483]
[1641227876616,0.59528109,3745.5,3745.0,1.25494483]
[1641227877017,2.60007109,3745.8,3745.1,0.90471891]
[1641227877317,0.59528109,3745.5,3745.0,1.25494483]
[1641227877716,2.00479,3745.8,3745.1,0.90471891]
[1641227877917,2.00479,3745.8,3745.0,1.25494483]
[1641227878117,0.59528109,3745.3,3745.0,1.25494483]
[1641227878518,0.59528109,3745.3,3745.0,2.74932513]
[1641227878717,0.59528109,3745.5,3745.0,2.74932513]
[1641227878916,0.59528109,3745.3,3745.0,2.74932513]
[1641227879318,2.00479,3745.8,3745.0,2.74932513]
[1641227879718,2.00479,3745.8,3745.0,1.25494483]
[1641227879919,0.59528109,3745.3,3745.0,1.25494483]
[1641227880119,2.00479,3745.8,3745.0,1.25494483]
[1641227880319,0.128157,3745.7,3745.0,1.25494483]
[1641227880520,0.59528109,3745.3,3745.0,1.25494483]
[1641227881022,0.229991,3745.2,3745.0,1.25494483]
[1641227882022,0.59528109,3745.1,3745.0,1.25494483]
[1641227882422,0.59528109,3745.1,3744.1,2.92085353]
[1641227882626,0.59528109,3744.2,3744.1,2.92085353]
[1641227882922,1.76062909,3744.2,3744.1,2.92085353]
[1641227883322,3.26062909,3744.2,3744.1,2.92085353]
[1641227883525,16.74541909,3744.2,3744.0,1.22276476]
[1641227884524,16.74541909,3744.2,3743.4,3.94060751]
[1641227884724,0.59528109,3743.5,3743.4,3.94060751]
[1641227884927,0.82527209,3743.5,3743.4,1.01975398]
[1641227885523,2.83006209,3743.5,3743.4,1.01975398]
[1641227888732,15.81006209,3743.5,3743.4,1.01975398]
[1641227888927,15.81006209,3743.5,3742.4,0.37338036]
[1641227889127,0.59528109,3742.5,3742.4,0.37338036]
[1641227889326,0.95342909,3742.5,3742.4,0.37338036]
[1641227889727,0.95342909,3742.5,3742.4,0.75021111]
[1641227889927,0.67042289,3742.5,3742.4,1.69947023]
[1641227890128,0.67042289,3742.5,3742.4,1.32263948]
[1641227891329,0.54226589,3742.5,3742.0,0.69003402]
[1641227891529,0.18738724,3742.1,3742.0,0.81819102]
[1641227891828,0.18738724,3742.4,3742.1,0.37683414]
[1641227892429,0.18738724,3742.2,3742.1,0.37683414]
[1641227892630,0.79948724,3742.2,3742.1,0.60682514]
[1641227892829,0.79948724,3742.2,3742.1,0.37683414]
[1641227893429,0.79948724,3742.2,3742.1,0.60682514]
[1641227893628,0.79948724,3742.2,3742.1,0.73498214]
[1641227893832,0.79948724,3742.2,3742.1,2.05167326]
[1641227894031,0.87601524,3742.2,3742.1,1.82168226]
[1641227894228,0.79948724,3742.2,3742.1,1.67483912]
[1641227894429,0.6121,3742.2,3742.1,1.67483912]
[1641227894630,0.18738724,3742.4,3742.1,1.67483912]
[1641227895133,0.076528,3742.3,3742.1,1.44484812]
[1641227895332,0.18738724,3742.5,3742.1,1.31669112]
[1641227895531,0.18738724,3742.3,3742.1,1.31669112]
[1641227896133,0.076528,3742.2,3742.1,1.31669112]
[1641227896537,0.18738724,3742.3,3742.1,1.54668212]
[1641227896737,0.18738724,3742.3,3742.1,1.31669112]
[1641227897139,0.076528,3742.2,3742.1,1.31669112]
[1641227897337,0.18738724,3742.3,3742.1,1.31669112]
[1641227897939,0.076528,3742.2,3742.1,1.31669112]
[1641227898341,0.18738724,3742.3,3742.1,1.54668212]
[1641227898541,0.18738724,3742.3,3742.1,1.31669112]
[1641227898944,0.076528,3742.2,3742.1,1.31669112]
[1641227899742,2.081318,3742.2,3742.1,1.31669112]
[1641227900645,2.00479,3742.2,3742.1,1.31669112]
[1641227901046,2.19217724,3742.2,3742.1,1.31669112]
[1641227901448,2.081318,3742.2,3742.1,1.31669112]
[1641227901845,2.26870524,3742.2,3742.1,1.31669112]
[1641227905350,0.96198756,3742.2,3742.1,1.31669112]
[1641227905553,0.88545956,3742.2,3742.1,1.31669112]
[1641227906251,1.0728468,3742.2,3742.1,1.31669112]
[1641227907152,1.0728468,3742.2,3742.1,1.54668212]
[1641227907654,0.88545956,3742.2,3742.1,1.54668212]
[1641227907858,2.00479,3742.7,3742.1,3.37649488]
[1641227908057,2.00479,3742.7,3742.3,1.31261276]
[1641227908256,2.00479,3742.7,3742.1,1.83389112]
[1641227908656,2.19217724,3742.7,3742.1,1.83389112]
[1641227909757,2.19217724,3742.7,3742.1,3.83868112]
[1641227910859,2.19217724,3742.7,3742.1,5.15129388]
[1641227911259,0.18738724,3743.1,3742.4,1.31261276]
[1641227911561,2.39869,3743.3,3742.4,1.31261276]
[1641227911761,2.39869,3743.3,3742.8,1.33472501]
[1641227911958,2.00479,3743.8,3743.2,1.31261276]
[1641227912260,2.00479,3743.8,3743.2,2.00372373]
[1641227912457,2.00479,3743.8,3743.3,1.31261276]
[1641227912659,2.00479,3743.8,3743.2,2.68913774]
[1641227912859,2.00479,3743.8,3743.2,1.35461401]
[1641227913659,2.00479,3743.8,3743.2,3.35940401]
[1641227913860,2.19217724,3744.4,3743.7,1.31261276]
[1641227914059,2.19217724,3744.4,3743.8,0.128157]
[1641227914459,0.128157,3744.3,3743.9,1.03132391]
[1641227916062,2.19217724,3744.4,3743.9,1.03132391]
[1641227916560,2.00479,3744.4,3743.9,1.03132391]
[1641227916960,0.128157,3744.3,3743.9,1.03132391]
[1641227917861,0.18738724,3744.1,3743.9,1.03132391]
[1641227918062,0.18738724,3744.1,3744.0,0.229991]
[1641227919365,2.00479,3744.4,3744.0,0.229991]
[1641227920161,2.132947,3744.4,3744.0,0.229991]
[1641227920566,2.00479,3744.4,3744.0,0.229991]
[1641227920965,9e-05,3744.4,3744.0,1.54260376]
[1641227921166,1.17649865,3744.8,3744.1,1.31261276]
[1641227921369,1.17649865,3744.8,3744.0,0.7052]
[1641227921565,1.17649865,3744.8,3744.4,1.33414271]
[1641227921769,1.17649865,3744.8,3744.7,2.00479]
[1641227921968,1.17649865,3744.8,3744.7,2.234781]
[1641227922167,1.17649865,3744.8,3744.7,3.55149973]
[1641227923169,0.18738724,3744.9,3744.7,3.55149973]
[1641227923768,0.18738724,3745.1,3744.7,3.55149973]
[1641227923967,0.18738724,3744.9,3744.7,3.55149973]
[1641227924669,1.17649865,3745.3,3744.7,3.55149973]
[1641227925669,1.47062331,3745.6,3744.7,3.55149973]
[1641227925670,1.17649865,3745.5,3745.0,1.50644665]
[1641227926471,0.128157,3745.4,3745.0,1.50644665]
[1641227927870,0.56491749,3745.3,3745.0,1.50644665]
[1641227928070,0.076528,3745.2,3745.0,1.50644665]
[1641227928271,0.56491749,3745.3,3745.0,1.50644665]
[1641227928771,0.128157,3745.4,3745.0,1.50644665]
[1641227928972,0.128157,3745.4,3744.7,3.32150873]
[1641227929171,2.00479,3745.7,3744.7,3.32150873]
[1641227933176,1.5,3745.6,3744.7,3.32150873]
[1641227933377,0.128157,3745.5,3744.7,3.32150873]
[1641227935579,2.00479,3745.7,3744.7,3.32150873]
[1641227936382,2.00479,3745.7,3744.7,4.82150873]
[1641227936582,1.17649865,3746.0,3744.7,4.82150873]
[1641227937387,2.00479,3746.1,3744.7,4.82150873]
[1641227937584,2.00479,3746.1,3744.7,3.32150873]
[1641227937784,2.00479,3746.1,3745.4,2.00479]
[1641227938084,0.128157,3746.0,3745.5,0.80738626]
[1641227938885,1.47062331,3745.9,3745.5,0.80738626]
[1641227939087,1.17649865,3745.7,3745.5,0.80738626]
[1641227939286,0.076528,3745.6,3745.5,0.80738626]
[1641227939685,1.17649865,3745.7,3745.5,0.80738626]
[1641227940788,1.74139111,3745.6,3745.5,0.80738626]
[1641227941588,0.076528,3745.6,3745.5,0.80738626]
[1641227943096,0.64142046,3745.6,3745.5,0.80738626]
[1641227946097,0.56489246,3745.6,3745.5,0.80738626]
[1641227946297,0.64142046,3745.6,3745.5,0.80738626]
[1641227946497,0.56489246,3745.6,3745.5,0.80738626]
[1641227946899,0.56489246,3745.6,3745.5,1.03737726]
[1641227947098,1.47062331,3745.8,3745.5,0.80738626]
[1641227947999,0.076528,3745.7,3745.5,0.80738626]
[1641227948198,1.47062331,3745.7,3745.5,0.80738626]
[1641227948899,1.17677483,3745.6,3745.5,0.80738626]
[1641227949798,0.56489246,3745.6,3745.5,0.80738626]
[1641227951199,1.74166729,3745.6,3745.5,0.80738626]
[1641227952301,2.55696729,3745.6,3745.5,0.80738626]
[1641227952498,1.38019246,3745.6,3745.5,0.80738626]
[1641227953698,0.56489246,3745.6,3745.5,0.80738626]
[1641227954199,1.25330283,3745.7,3745.5,0.80738626]
[1641227954399,0.076528,3745.7,3745.5,0.80738626]
[1641227955403,0.076528,3745.7,3745.5,1.03737726]
[1641227955701,0.128157,3746.0,3745.5,1.03737726]
[1641227955901,0.128157,3746.0,3745.5,0.80738626]
[1641227956100,1.17565221,3745.9,3745.5,0.80738626]
[1641227957506,1.17565221,3745.8,3745.5,0.80738626]
[1641227957702,1.17565221,3745.8,3745.6,0.229991]
[1641227958102,0.076528,3745.7,3745.5,0.80738626]
[1641227960611,3.24054882,3745.6,3745.5,0.80738626]
[1641227960909,11.48,3745.5,3744.6,1.45862533]
[1641227961107,1.5,3744.8,3744.6,1.45862533]
[1641227961309,12.80526763,3745.5,3744.6,1.45862533]
[1641227961507,1.5,3744.8,3743.8,3.00798744]
[1641227961707,1.5,3744.8,3743.3,61.6457]
[1641227961708,1.5,3744.8,3743.4,3.00798744]
[1641227962208,2.00479,3744.5,3743.6,2.00479]
[1641227962409,2.53639,3744.5,3743.6,2.00479]
[1641227962808,2.53639,3744.5,3743.7,0.82386229]
[1641227963411,0.128157,3744.4,3743.7,0.82386229]
[1641227963612,0.128157,3744.4,3743.7,0.95201929]
[1641227965414,0.128157,3744.4,3743.7,0.82386229]
[1641227970422,0.128157,3744.4,3743.7,0.95201929]
[1641227975324,0.128157,3744.4,3743.7,0.82386229]
[1641227976222,2.00479,3743.9,3743.7,0.82386229]
[1641227976423,2.00479,3743.9,3743.8,0.229991]
[1641227978025,2.00479,3744.5,3743.8,0.229991]
[1641227978628,2.00479,3744.5,3743.8,1.56437227]
[1641227979929,1.45164981,3745.5,3744.2,0.80122645]
[1641227980128,2.00479,3745.6,3744.7,2.00479]
[1641227980332,3.1729324,3745.6,3744.8,0.128157]
[1641227980528,0.128157,3745.5,3744.8,0.128157]
[1641227980729,0.128157,3745.5,3744.7,2.00479]
[1641227981030,0.128157,3745.5,3744.7,3.33493772]
[1641227982830,0.128157,3745.5,3744.7,3.46309472]
[1641227986538,0.709257,3745.5,3744.7,3.33493772]
[1641227988535,0.709257,3745.5,3744.8,0.128157]
[1641227989337,0.128157,3745.5,3744.8,0.128157]
[1641227990737,2.00479,3745.6,3744.8,0.128157]
[1641227992238,0.128157,3745.5,3744.8,0.128157]
[1641227993240,0.128157,3745.5,3744.7,3.33493772]
[1641227993639,0.128157,3745.5,3744.8,0.128157]
[1641227994040,2.00479,3745.6,3744.8,0.128157]
[1641227995645,0.128157,3745.5,3744.8,0.128157]
[1641227996344,2.00479,3745.6,3744.8,0.128157]
[1641227997348,2.00479,3745.6,3744.7,3.33493772]
[1641227997746,0.128157,3745.5,3744.8,0.128157]
[1641227998748,2.00479,3745.6,3744.8,0.128157]
[1641228002153,0.128157,3745.5,3744.7,3.33493772]
[1641228005159,0.128157,3745.5,3744.8,0.128157]
[1641228006057,0.128157,3745.5,3744.7,3.33493772]
[1641228007260,0.128157,3745.5,3744.8,0.128157]
[1641228007859,0.128157,3745.5,3744.7,3.33493772]
[1641228010562,0.128157,3745.5,3744.8,0.128157]
[1641228014064,2.00479,3745.6,3744.8,0.128157]
[1641228014365,0.128157,3745.5,3744.8,0.128157]
[1641228014565,0.128157,3745.5,3744.7,3.33493772]
[1641228014765,0.128157,3745.5,3744.7,3.46309472]
[1641228015070,1.45164981,3746.1,3745.4,1.5]
[1641228015270,5.429,3746.8,3746.0,1.5]
[1641228015468,7.841e-05,3746.9,3746.4,1.5]
[1641228015669,7.841e-05,3746.9,3746.0,3.54572223]
[1641228016168,7.841e-05,3746.9,3746.8,1.5]
[1641228016371,4.04130447,3747.5,3746.8,6.389871]
[1641228016569,4.40869578,3748.1,3747.1,2.83318935]
[1641228016869,4.40869578,3748.1,3747.3,1.5]
[1641228017168,4.40869578,3748.1,3747.1,1.33318935]
[1641228017169,4.40869578,3748.1,3747.5,1.5]
[1641228017368,2.00479,3748.2,3747.2,1.5]
[1641228018371,2.00479,3748.2,3747.6,2.00479]
[1641228018870,2.00479,3748.2,3747.6,2.132947]
[1641228019070,2.00479,3748.2,3747.6,2.00479]
[1641228019470,1.5,3747.7,3747.4,0.90021594]
[1641228019672,0.076528,3747.6,3746.8,2.00479]
[1641228019971,14.20946515,3748.1,3746.8,2.00479]
[1641228020174,14.20946515,3748.1,3746.9,0.96137892]
[1641228020371,2.00479,3747.5,3746.9,0.96137892]
[1641228021071,2.00479,3747.5,3746.9,1.08953592]
[1641228021670,0.128157,3747.4,3746.9,0.96137892]
[1641228021870,0.631457,3747.4,3746.9,0.96137892]
[1641228022675,0.5033,3747.4,3746.9,0.96137892]
[1641228022874,0.5033,3747.4,3747.0,0.128157]
[1641228023373,2.00479,3747.5,3747.0,0.128157]
[1641228024273,2.53319,3748.2,3747.0,0.128157]
[1641228024474,2.00479,3748.2,3747.3,2.00479]
[1641228024674,11.608157,3748.1,3747.4,0.80144808]
[1641228024875,14.48,3747.7,3747.4,0.80144808]
[1641228025076,0.076528,3747.6,3747.4,0.80144808]
[1641228026477,2.00479,3747.5,3747.4,0.80144808]
[1641228026683,16.24377707,3747.5,3746.1,1.5003063]
[1641228026879,16.24377707,3747.5,3745.6,3.75112415]
[1641228026880,1.5,3746.3,3745.6,3.75112415]
[1641228027078,13.7663,3746.3,3745.9,3.00085989]
[1641228027280,0.128157,3746.2,3745.9,3.00085989]
[1641228027478,0.076528,3746.1,3745.9,3.00085989]
[1641228028280,0.076528,3746.1,3745.0,3.00085989]
[1641228028480,2.00479,3745.8,3745.0,3.00085989]
[1641228028680,2.00479,3745.8,3745.1,0.128157]
[1641228029182,0.56469423,3746.2,3745.1,0.128157]
[1641228029380,1.17007649,3746.3,3745.1,0.128157]
[1641228029581,1.75118073,3746.9,3745.1,0.128157]
[1641228029582,1.17007649,3746.6,3745.1,0.128157]
[1641228029780,1.17007649,3746.6,3745.2,0.85556676]
[1641228030385,1.17007649,3746.6,3745.8,2.00479]
[1641228030582,0.128157,3746.5,3745.8,2.77989]
[1641228031183,0.128157,3746.5,3745.9,0.128157]
[1641228031586,0.128157,3746.5,3746.0,0.76229676]
[1641228037190,11.48,3746.1,3746.0,0.76229676]
[1641228037392,12.218628,3746.1,3746.0,0.76229676]
[1641228037994,13.718628,3746.1,3746.0,0.76229676]
[1641228038392,14.7883088,3746.1,3746.0,0.76229676]
[1641228038591,16.2883088,3746.1,3744.9,2.00479]
[1641228038792,1.5,3745.8,3744.9,2.00479]
[1641228039092,1.5,3745.3,3745.0,0.97327097]
[1641228039293,0.076528,3745.2,3744.9,2.00479]
[1641228039996,0.076528,3745.2,3745.1,0.90180884]
[1641228041195,0.076528,3745.2,3745.1,1.63602324]
[1641228042397,2.081318,3745.2,3745.1,1.63602324]
[1641228042597,13.561318,3745.2,3745.1,1.63602324]
[1641228044096,13.561318,3745.2,3745.1,0.7342144]
[1641228046703,13.561318,3745.2,3745.1,1.63602324]
[1641228047103,14.89594147,3745.2,3745.1,1.63602324]
[1641228047303,13.561318,3745.2,3745.1,1.63602324]
[1641228047704,13.561318,3745.2,3745.1,0.7342144]
[1641228048806,18.90154585,3745.2,3745.1,0.7342144]
[1641228049608,18.82501785,3745.2,3745.1,0.7342144]
[1641228049809,18.90154585,3745.2,3745.1,0.7342144]
[1641228051708,7.34501785,3745.2,3745.1,0.7342144]
[1641228051910,3.17486649,3745.6,3745.1,0.9642054]
[1641228052109,3.0,3745.3,3745.1,0.7342144]
[1641228052910,3.0,3745.3,3745.1,0.9642054]
[1641228053110,0.076528,3745.2,3745.1,0.7342144]
[1641228054011,3.0,3745.3,3745.1,0.7342144]
[1641228055215,0.076528,3745.2,3745.1,0.7342144]
[1641228055415,3.0,3745.3,3745.1,0.9642054]
[1641228055816,3.0,3745.3,3745.1,0.7342144]
[1641228056316,0.076528,3745.2,3745.1,0.7342144]
[1641228057318,7.34446516,3745.6,3745.1,0.9642054]
[1641228057319,1.17007649,3745.5,3745.1,0.9642054]
[1641228057518,1.75118073,3746.0,3745.3,1.5]
[1641228057717,1.75118073,3746.0,3745.6,1.5]
[1641228057917,1.75118073,3746.0,3745.2,1.4620221]
[1641228058317,1.75118073,3746.0,3745.2,0.128157]
[1641228058722,0.56477961,3746.7,3745.3,3.00085989]
[1641228058919,0.56477961,3746.7,3746.2,2.00479]
[1641228059119,0.128157,3746.6,3746.2,2.00479]
[1641228059617,0.128157,3746.6,3746.2,2.82491956]
[1641228060920,0.56477961,3746.9,3746.2,2.82491956]
[1641228061120,0.56477961,3746.9,3746.3,1.628157]
[1641228061324,1.75118073,3747.3,3746.3,0.128157]
[1641228061522,2.00479,3747.4,3746.2,3.47571956]
[1641228061523,13.48479,3747.4,3746.2,3.47571956]
[1641228061920,2.00479,3747.4,3746.2,3.47571956]
[1641228062721,0.56467538,3747.3,3746.2,3.47571956]
[1641228062921,0.56467538,3747.3,3746.6,2.00479]
[1641228063121,0.69283238,3747.3,3746.6,2.132947]